fUST/lending_fUST_20241220
["ID","MTS","AMOUNT","RATE_DAILY","PERIOD"]
[346066851,1734688785227,-2000.0,0.00022,30]
[346066852,1734688785556,-2000.0,0.00022,30]
[346066854,1734688786425,-2000.0,0.00022,30]
[346066855,1734688789820,-1000.0,0.00022,30]
[346066856,1734688794551,-833.0,0.00022,30]
[346066866,1734689006214,222.517873,0.00013973,2]
[346066960,1734689434491,-222.517873,0.00020447,2]
[346066961,1734689434503,-164.806563,0.00020538,2]
[346066962,1734689434514,-650.2556135,0.00020595,11]
[346066963,1734689434524,-390.782,0.0002073,2]
[346066964,1734689434535,-2823.269858,0.0002076,2]
[346066965,1734689434545,-151.0,0.00021572,5]
[346066966,1734689434555,-170.0,0.00021601,2]
[346066967,1734689434566,-151.0,0.00021671,5]
[346066968,1734689434577,-426.42592109,0.00021717,2]
[346066969,1734689434587,-2342.0778597,0.00021717,2]
[346066970,1734689434597,-151.0,0.0002177,5]
[346066971,1734689434607,-300.0,0.00021799,2]
[346066972,1734689434618,-1320.8,0.000218,2]
[346066973,1734689434628,-1426.172804,0.000218,2]
[346066974,1734689434639,-151.0,0.000218,3]
[346066975,1734689434649,-151.0,0.000218,3]
[346066976,1734689434659,-151.0,0.000218,4]
[346066977,1734689434669,-150.0,0.000218,2]
[346066978,1734689434679,-3952.53133559,0.000218,2]
[346066979,1734689434689,-7689.45957423,0.0002181,2]
[346066981,1734689437633,-1892.4,0.0002181,2]
[346066983,1734689437646,-44297.25182192,0.0002181,2]
[346066984,1734689437656,-151.0,0.00021816,2]
[346066985,1734689437666,-183.843,0.00021816,2]
[346066986,1734689437675,-30975.10998385,0.00021817,2]
[346066987,1734689437685,-3061.81549841,0.00021817,2]
[346066988,1734689437695,-666.0,0.00021817,2]
[346066989,1734689437708,-11616.13576582,0.00021817,4]
[346067059,1734689438792,-17711.59454508,0.00021817,4]
[346067060,1734689438804,-75025.41210291,0.00021817,4]
[346067061,1734689439072,-154316.31325435,0.00021817,4]
[346067081,1734689440610,-2368606.55411126,0.00021817,4]
[346067082,1734689440651,-9463.9,0.00021817,4]
[346067152,1734689443589,-3945.85468439,0.00021817,4]
[346067153,1734689443601,-1005.5,0.00021817,4]
[346067154,1734689443612,-475.0,0.00021817,4]
[346067155,1734689443624,-615.89240559,0.00021817,4]
[346067156,1734689443695,-12903.15119,0.00021817,4]
[346067157,1734689443708,-9833.19390695,0.00021817,4]
[346067158,1734689443719,-1139.25,0.00021817,4]
[346067159,1734689443730,-974.99999999,0.00021817,4]
[346067160,1734689443746,-3924.49369643,0.00021817,4]
[346067203,1734689446899,-666.0,0.00021817,2]
[346067204,1734689446908,-15283.999871,0.00021817,4]
[346067205,1734689446920,-16849.200024,0.00021817,4]
[346067206,1734689446932,-401478.60083,0.00021817,4]
[346067233,1734689768231,7032.98,0.0001725,2]
[346067236,1734690054856,232.781216,0.00013973,2]
[346067238,1734690066407,191.86,0.00025,120]
[346067256,1734690130468,2691.6875,0.00025,120]
[346067257,1734690130757,2579.235,0.00025,120]
[346067258,1734690131355,2471.0,0.00025,120]
[346067259,1734690131660,2368.7,0.00025,120]
[346067260,1734690131998,2269.16721,0.00025,120]
[346067261,1734690132398,2175.737431,0.00025,120]
[346067262,1734690132699,2084.414499,0.00025,120]
[346067263,1734690133031,1997.0,0.00025,120]
[346067264,1734690133328,1915.0,0.00025,120]
[346067265,1734690133659,1834.0,0.00025,120]
[346067266,1734690133954,1758.694,0.00025,120]
[346067267,1734690134438,1685.2,0.00025,120]
[346067268,1734690134593,1685.51741,0.00025,120]
[346067271,1734690149792,1544.460156,0.00025,120]
[346067272,1734690150082,1480.44,0.00025,120]
[346067273,1734690150401,1418.629166,0.00025,120]
[346067274,1734690150856,1359.5,0.00025,120]
[346067275,1734690151434,1302.100785,0.00025,120]
[346067276,1734690151726,1248.76,0.00025,120]
[346067277,1734690152247,1196.191456,0.00025,120]
[346067278,1734690152624,1146.1,0.00025,120]
[346067284,1734690347166,-2490.68515673,0.00018715,2]
[346067285,1734690347188,-604.37740898,0.00018804,3]
[346067286,1734690347211,-5000.0,0.00018904,2]
[346067287,1734690347234,-300.0,0.00018999,2]
[346067288,1734690347509,-3821.26973251,0.00019,10]
[346067289,1734690347531,-172.028443,0.00020401,2]
[346067290,1734690347566,-232.781216,0.00020447,2]
[346067291,1734690347594,-1918.2714556,0.00020574,2]
[346067292,1734690347616,-194.8951656,0.000206,2]
[346067293,1734690347639,-420.0,0.00020709,2]
[346067294,1734690347666,-459.341,0.0002073,2]
[346067295,1734690347711,-228.0,0.0002151,5]
[346067296,1734690347758,-1083.9131317,0.00021598,2]
[346067297,1734690347804,-160.0,0.00021663,3]
[346067298,1734690347853,-150.0,0.0002174,2]
[346067299,1734690347905,-1572.343,0.0002174,2]
[346067300,1734690347971,-1337.805,0.0002174,2]
[346067301,1734690348014,-151.0,0.000218,4]
[346067302,1734690348036,-214.25721198,0.00021816,2]
[346067303,1734690348060,-178.59699684,0.00021816,2]
[346067304,1734690348083,-242.93238916,0.00021816,2]
[346067305,1734690348109,-411.59462311,0.00021816,2]
[346067306,1734690348134,-475.97593731,0.00021816,2]
[346067307,1734690348158,-166.89715187,0.00021816,2]
[346067308,1734690348182,-183.843,0.00021816,2]
[346067309,1734690348204,-206076.53475664,0.00021817,7]
[346067310,1734690348228,-666.0,0.00021817,2]
[346067311,1734690348253,-6993.90843197,0.00021817,4]
[346067312,1734690356106,-228.2,0.00021381,4]
[346067313,1734690356128,-228.2,0.0002148,5]
[346067314,1734690356149,-228.2,0.00021578,5]
[346067315,1734690356172,-228.2,0.00021677,5]
[346067316,1734690356204,-228.2,0.00021775,5]
[346067317,1734690356228,-63620.5152438,0.00021817,4]
[346067318,1734690356250,-5000.0,0.00021817,4]
[346067319,1734690356271,-500.0,0.00021817,2]
[346067320,1734690356292,-231.0,0.00021817,4]
[346067321,1734690356313,-231.31076614,0.00021817,2]
[346067322,1734690356335,-500.0,0.00021817,2]
[346067323,1734690356358,-500.0,0.00021817,2]
[346067324,1734690356379,-166.0,0.00021835,2]
[346067325,1734690356402,-166.0,0.00021835,2]
[346067326,1734690356428,-166.0,0.00021835,2]
[346067327,1734690356457,-166.0,0.00021835,2]
[346067328,1734690356480,-166.0,0.00021835,2]
[346067329,1734690356502,-166.0,0.00021835,2]
[346067330,1734690356524,-1000.0,0.00021844,2]
[346067331,1734690356549,-228.2,0.00021874,5]
[346067332,1734690356571,-151.0,0.000219,4]
[346067333,1734690356596,-151.0,0.000219,3]
[346067334,1734690356618,-151.0,0.000219,3]
[346067335,1734690356642,-151.0,0.000219,3]
[346067336,1734690356665,-151.0,0.000219,3]
[346067337,1734690356696,-151.0,0.000219,3]
[346067338,1734690356718,-2252.91,0.000219,2]
[346067339,1734690356741,-780.0,0.000219,9]
[346067340,1734690356763,-159.372016,0.00021917,2]
[346067341,1734690356785,-151.0,0.00021917,2]
[346067342,1734690356806,-151.0,0.00021917,2]
[346067343,1734690356830,-298.495158,0.00021917,2]
[346067344,1734690356851,-151.0,0.00021917,2]
[346067345,1734690356871,-151.0,0.00021917,2]
[346067346,1734690356892,-151.0,0.00021917,2]
[346067347,1734690356913,-151.0,0.00021917,2]
[346067348,1734690356942,-151.0,0.00021917,2]
[346067349,1734690356963,-165.273805,0.00021917,2]
[346067350,1734690356985,-500.0,0.00021917,6]
[346067351,1734690357007,-500.0,0.00021917,6]
[346067352,1734690357029,-500.0,0.00021917,6]
[346067353,1734690357050,-288.8940438,0.00021917,6]
[346067354,1734690357072,-500.0,0.00021917,6]
[346067355,1734690357295,-500.26325349,0.00021917,6]
[346067356,1734690357317,-500.0,0.00021917,2]
[346067357,1734690357339,-151.0,0.00021917,2]
[346067358,1734690357360,-151.0,0.00021917,2]
[346067359,1734690357382,-152.471013,0.00021917,2]
[346067360,1734690357403,-500.0,0.00021917,6]
[346067361,1734690357426,-500.0,0.00021917,6]
[346067362,1734690357456,-152.379172,0.00021917,2]
[346067363,1734690357479,-152.379172,0.00021917,2]
[346067364,1734690357501,-152.379172,0.00021917,2]
[346067365,1734690357524,-152.37918,0.00021917,2]
[346067366,1734690357546,-311.3559692,0.00021917,6]
[346067367,1734690357568,-500.24093591,0.00021917,6]
[346067368,1734690357591,-500.0,0.00021917,6]
[346067369,1734690357614,-500.0,0.00021917,6]
[346067370,1734690357636,-503.69302321,0.00021917,6]
[346067371,1734690357660,-151.0,0.00021917,2]
[346067372,1734690357689,-151.0,0.00021917,2]
[346067373,1734690357711,-500.0,0.00021917,6]
[346067374,1734690357735,-500.0,0.00021917,6]
[346067375,1734690357756,-500.0,0.00021917,6]
[346067376,1734690357778,-500.0,0.00021917,6]
[346067377,1734690357800,-500.0,0.00021917,6]
[346067378,1734690357823,-500.0,0.00021917,6]
[346067379,1734690357845,-500.0,0.00021917,6]
[346067380,1734690357865,-500.5673588,0.00021917,6]
[346067381,1734690357886,-500.0,0.00021917,6]
[346067382,1734690357909,-500.0,0.00021917,6]
[346067383,1734690357935,-500.0,0.00021917,6]
[346067384,1734690357956,-500.0,0.00021917,6]
[346067385,1734690357977,-500.0,0.00021917,6]
[346067386,1734690357999,-500.0,0.00021917,6]
[346067387,1734690358021,-500.0,0.00021917,6]
[346067388,1734690358043,-500.0,0.00021917,6]
[346067389,1734690358064,-500.0,0.00021917,6]
[346067390,1734690358089,-500.0,0.00021917,6]
[346067391,1734690358111,-500.0,0.00021917,6]
[346067392,1734690358134,-500.0,0.00021917,6]
[346067393,1734690358156,-500.0,0.00021917,6]
[346067394,1734690358182,-500.0,0.00021917,6]
[346067395,1734690358204,-500.0,0.00021917,6]
[346067396,1734690358225,-151.0,0.00021917,2]
[346067397,1734690358247,-500.0,0.00021917,6]
[346067398,1734690358268,-912.86,0.00021917,6]
[346067399,1734690358288,-500.0,0.00021917,6]
[346067400,1734690358309,-500.0,0.00021917,6]
[346067401,1734690358331,-502.70866287,0.00021917,6]
[346067402,1734690358353,-500.0,0.00021917,6]
[346067403,1734690358374,-500.0,0.00021917,6]
[346067404,1734690358395,-500.0,0.00021917,6]
[346067405,1734690358417,-501.08648061,0.00021917,6]
[346067406,1734690358443,-1000.0,0.00021917,2]
[346067407,1734690358464,-174.84988895,0.00021917,6]
[346067408,1734690358485,-500.0,0.00021917,6]
[346067409,1734690358505,-500.0,0.00021917,6]
[346067410,1734690358526,-500.0,0.00021917,6]
[346067411,1734690358550,-500.0,0.00021917,6]
[346067412,1734690358571,-501.80392648,0.00021917,6]
[346067413,1734690358594,-636.4,0.00021917,6]
[346067414,1734690358615,-500.0,0.00021917,6]
[346067415,1734690358637,-500.0,0.00021917,6]
[346067416,1734690358659,-506.86880565,0.00021917,6]
[346067417,1734690358683,-500.0,0.00021917,6]
[346067418,1734690358704,-500.0,0.00021917,6]
[346067419,1734690358725,-502.44379707,0.00021917,6]
[346067420,1734690358748,-1486.39,0.00021917,7]
[346067421,1734690358770,-500.0,0.00021917,6]
[346067422,1734690358792,-1257.52,0.00021917,6]
[346067423,1734690358813,-500.0,0.00021917,6]
[346067424,1734690358835,-500.0,0.00021917,6]
[346067425,1734690358856,-500.0,0.00021917,6]
[346067426,1734690358876,-500.0,0.00021917,6]
[346067427,1734690358898,-500.0,0.00021917,6]
[346067428,1734690358919,-500.0,0.00021917,6]
[346067429,1734690358945,-736.98,0.00021917,6]
[346067430,1734690358966,-500.0,0.00021917,6]
[346067431,1734690358989,-502.62096378,0.00021917,6]
[346067432,1734690359011,-500.0,0.00021917,6]
[346067433,1734690359031,-504.08015614,0.00021917,6]
[346067434,1734690359053,-574.37,0.00021917,6]
[346067435,1734690359075,-151.0,0.00021917,2]
[346067436,1734690359098,-510.71449282,0.00021917,6]
[346067437,1734690359120,-500.0,0.00021917,6]
[346067438,1734690359141,-500.0,0.00021917,6]
[346067439,1734690359163,-500.0,0.00021917,6]
[346067440,1734690359190,-500.0,0.00021917,6]
[346067441,1734690359212,-500.0,0.00021917,6]
[346067442,1734690359235,-500.0,0.00021917,6]
[346067443,1734690359258,-500.0,0.00021917,6]
[346067444,1734690359281,-500.0,0.00021917,6]
[346067445,1734690359304,-500.0,0.00021917,6]
[346067446,1734690359326,-500.0,0.00021917,6]
[346067447,1734690359347,-500.0,0.00021917,6]
[346067448,1734690359368,-500.0,0.00021917,6]
[346067449,1734690359389,-502.27698611,0.00021917,6]
[346067450,1734690359410,-522.44487731,0.00021917,6]
[346067451,1734690359435,-500.0,0.00021917,6]
[346067452,1734690359458,-609.11670012,0.00021917,6]
[346067453,1734690359480,-151.0,0.00021917,2]
[346067454,1734690359502,-500.0,0.00021917,6]
[346067455,1734690359524,-500.0,0.00021917,6]
[346067456,1734690359548,-891.85,0.00021917,6]
[346067457,1734690359570,-556.07378506,0.00021917,6]
[346067458,1734690359592,-226.806604,0.00021917,2]
[346067459,1734690359612,-502.31632052,0.00021917,6]
[346067460,1734690359635,-226.806604,0.00021917,2]
[346067461,1734690359658,-500.0,0.00021917,6]
[346067462,1734690359684,-500.75374843,0.00021917,6]
[346067463,1734690359709,-226.806604,0.00021917,2]
[346067464,1734690359736,-500.0,0.00021917,6]
[346067465,1734690359760,-226.806604,0.00021917,2]
[346067466,1734690359782,-500.0,0.00021917,6]
[346067467,1734690359804,-500.0,0.00021917,6]
[346067468,1734690359825,-500.0,0.00021917,6]
[346067469,1734690359846,-500.0,0.00021917,6]
[346067470,1734690359868,-500.0,0.00021917,6]
[346067471,1734690359889,-500.0,0.00021917,6]
[346067472,1734690359910,-500.0,0.00021917,6]
[346067473,1734690359935,-501.00962022,0.00021917,6]
[346067474,1734690359956,-500.0,0.00021917,6]
[346067475,1734690359976,-500.0,0.00021917,6]
[346067476,1734690359997,-500.0,0.00021917,6]
[346067477,1734690360018,-500.0,0.00021917,6]
[346067478,1734690360040,-500.0,0.00021917,6]
[346067479,1734690360062,-785.11,0.00021917,6]
[346067480,1734690360084,-151.0,0.00021917,2]
[346067481,1734690360107,-151.0,0.00021917,2]
[346067482,1734690360129,-500.0,0.00021917,6]
[346067483,1734690360151,-500.0,0.00021917,6]
[346067484,1734690360173,-151.0,0.00021917,2]
[346067485,1734690360200,-151.0,0.00021917,2]
[346067486,1734690360221,-504.74646438,0.00021917,6]
[346067487,1734690360244,-428.56452813,0.00021917,6]
[346067492,1734690426143,-8844.0,0.00021,2]
[346067493,1734690426166,-153.0,0.00021625,2]
[346067494,1734690426188,-153.0,0.00021625,2]
[346067495,1734690426211,-153.0,0.00021625,2]
[346067496,1734690426233,-153.0,0.00021625,2]
[346067497,1734690426255,-541.9565659,0.00021697,2]
[346067498,1734690426277,-300.0,0.00021816,2]
[346067499,1734690426299,-300.0,0.00021816,2]
[346067500,1734690426320,-666.0,0.00021817,2]
[346067501,1734690426342,-71.43547187,0.00021917,6]
[346067502,1734690426364,-990.09,0.00021917,6]
[346067503,1734690426386,-500.0,0.00021917,6]
[346067504,1734690426407,-500.0,0.00021917,6]
[346067505,1734690426428,-500.0,0.00021917,6]
[346067506,1734690426450,-500.0,0.00021917,6]
[346067507,1734690426471,-503.06856182,0.00021917,6]
[346067508,1734690426494,-311.528971,0.00021917,2]
[346067509,1734690426516,-311.528971,0.00021917,2]
[346067510,1734690426537,-500.0,0.00021917,6]
[346067511,1734690426559,-311.528971,0.00021917,2]
[346067512,1734690426581,-311.528971,0.00021917,2]
[346067513,1734690426603,-500.0,0.00021917,6]
[346067514,1734690426625,-500.0,0.00021917,6]
[346067515,1734690426648,-500.0,0.00021917,6]
[346067516,1734690426671,-501.82153645,0.00021917,6]
[346067517,1734690426694,-500.0,0.00021917,6]
[346067518,1734690426716,-500.0,0.00021917,6]
[346067519,1734690426738,-353.30995296,0.00021917,6]
[346067520,1734690427120,-146.69004704,0.00021917,6]
[346067521,1734690427144,-151.0,0.00021917,2]
[346067522,1734690427169,-151.0,0.00021917,2]
[346067523,1734690427195,-601.47208385,0.00021917,6]
[346067524,1734690427219,-500.0,0.00021917,6]
[346067525,1734690427243,-500.0,0.00021917,6]
[346067526,1734690427266,-500.0,0.00021917,6]
[346067527,1734690427288,-153.194882,0.00021917,2]
[346067528,1734690427312,-500.0,0.00021917,6]
[346067529,1734690427335,-500.0,0.00021917,6]
[346067530,1734690427358,-500.0,0.00021917,6]
[346067531,1734690427381,-501.54176609,0.00021917,6]
[346067532,1734690427404,-500.0,0.00021917,6]
[346067533,1734690427429,-500.0,0.00021917,6]
[346067534,1734690427452,-500.0,0.00021917,6]
[346067535,1734690427475,-1210.43,0.00021917,6]
[346067536,1734690427500,-500.0,0.00021917,6]
[346067537,1734690427523,-500.0,0.00021917,6]
[346067538,1734690427546,-500.69827255,0.00021917,6]
[346067539,1734690427572,-537.71,0.00021917,6]
[346067540,1734690427595,-500.0,0.00021917,6]
[346067541,1734690427618,-501.10594228,0.00021917,6]
[346067542,1734690427641,-526.68045019,0.00021917,6]
[346067543,1734690427664,-500.0,0.00021917,6]
[346067544,1734690427947,-500.0,0.00021917,6]
[346067545,1734690427970,-500.0,0.00021917,6]
[346067546,1734690428002,-500.69216713,0.00021917,6]
[346067547,1734690428024,-500.0,0.00021917,6]
[346067548,1734690428053,-500.0,0.00021917,6]
[346067549,1734690428077,-500.0,0.00021917,6]
[346067550,1734690428100,-500.0,0.00021917,6]
[346067551,1734690428122,-737.06,0.00021917,6]
[346067552,1734690428144,-500.0,0.00021917,6]
[346067553,1734690428167,-500.0,0.00021917,6]
[346067554,1734690428190,-501.47135448,0.00021917,6]
[346067555,1734690428212,-500.0,0.00021917,6]
[346067556,1734690428235,-500.0,0.00021917,6]
[346067557,1734690428258,-500.0,0.00021917,6]
[346067558,1734690428281,-500.0,0.00021917,6]
[346067559,1734690428304,-500.0,0.00021917,6]
[346067560,1734690428327,-510.76997477,0.00021917,6]
[346067561,1734690428351,-500.0,0.00021917,6]
[346067562,1734690428374,-500.0,0.00021917,6]
[346067563,1734690428396,-500.0,0.00021917,6]
[346067564,1734690428418,-500.0,0.00021917,6]
[346067565,1734690428440,-500.0,0.00021917,6]
[346067566,1734690428465,-500.0,0.00021917,6]
[346067567,1734690428489,-500.0,0.00021917,6]
[346067568,1734690428512,-500.0,0.00021917,6]
[346067569,1734690428534,-500.0,0.00021917,6]
[346067570,1734690428555,-501.16669371,0.00021917,6]
[346067571,1734690428576,-151.0,0.00021917,2]
[346067572,1734690428597,-500.68772871,0.00021917,6]
[346067573,1734690428619,-151.0,0.00021917,2]
[346067574,1734690428642,-500.0,0.00021917,6]
[346067575,1734690428664,-502.19489357,0.00021917,6]
[346067576,1734690428687,-500.0,0.00021917,6]
[346067577,1734690428709,-294.20258583,0.00021917,2]
[346067578,1734690428731,-500.0,0.00021917,6]
[346067579,1734690428753,-502.19736658,0.00021917,6]
[346067580,1734690428776,-500.0,0.00021917,6]
[346067581,1734690428798,-500.0,0.00021917,6]
[346067582,1734690428820,-510.70050209,0.00021917,6]
[346067583,1734690428841,-500.0,0.00021917,6]
[346067584,1734690428862,-500.0,0.00021917,6]
[346067585,1734690428884,-501.88127006,0.00021917,6]
[346067586,1734690428906,-792.98,0.00021917,6]
[346067587,1734690428928,-500.0,0.00021917,6]
[346067588,1734690428951,-500.0,0.00021917,6]
[346067589,1734690428976,-500.0,0.00021917,6]
[346067590,1734690429010,-500.0,0.00021917,6]
[346067591,1734690429034,-500.0,0.00021917,6]
[346067592,1734690429056,-1222.71,0.00021917,6]
[346067593,1734690429078,-151.0,0.00021917,2]
[346067594,1734690429100,-151.0,0.00021917,2]
[346067595,1734690429122,-500.0,0.00021917,6]
[346067596,1734690429142,-500.0,0.00021917,6]
[346067597,1734690429164,-500.0,0.00021917,6]
[346067598,1734690429186,-151.0,0.00021917,2]
[346067599,1734690429208,-151.0,0.00021917,2]
[346067600,1734690429230,-500.0,0.00021917,6]
[346067601,1734690429252,-620.18,0.00021917,6]
[346067602,1734690429274,-151.0,0.00021917,2]
[346067603,1734690429296,-500.0,0.00021917,6]
[346067604,1734690429317,-251.09377,0.00021917,2]
[346067605,1734690429338,-522.23,0.00021917,6]
[346067606,1734690429359,-500.0,0.00021917,6]
[346067607,1734690429380,-500.0,0.00021917,6]
[346067608,1734690429402,-500.0,0.00021917,6]
[346067609,1734690429423,-500.0,0.00021917,6]
[346067610,1734690429444,-500.0,0.00021917,6]
[346067611,1734690429465,-500.87877798,0.00021917,6]
[346067612,1734690429487,-500.0,0.00021917,6]
[346067613,1734690429517,-500.0,0.00021917,6]
[346067614,1734690429543,-500.79512539,0.00021917,6]
[346067615,1734690429569,-500.0,0.00021917,6]
[346067616,1734690429591,-500.0,0.00021917,6]
[346067617,1734690429616,-500.0,0.00021917,6]
[346067618,1734690429637,-500.0,0.00021917,6]
[346067619,1734690429660,-500.0,0.00021917,6]
[346067620,1734690429682,-500.0,0.00021917,6]
[346067621,1734690429704,-151.50585,0.00021917,2]
[346067622,1734690429728,-594.8,0.00021917,6]
[346067623,1734690429763,-502.69988103,0.00021917,6]
[346067624,1734690429787,-236.60909542,0.00021917,6]
[346067625,1734690429810,-151.0,0.00021917,2]
[346067626,1734690429832,-151.0,0.00021917,2]
[346067627,1734690429855,-500.0,0.00021917,6]
[346067628,1734690429878,-500.0,0.00021917,6]
[346067629,1734690429901,-500.0,0.00021917,6]
[346067630,1734690429923,-502.43643271,0.00021917,6]
[346067631,1734690429945,-500.0,0.00021917,6]
[346067632,1734690429968,-1021.79,0.00021917,6]
[346067633,1734690430001,-500.0,0.00021917,6]
[346067634,1734690430024,-500.0,0.00021917,6]
[346067635,1734690430048,-250.248625,0.00021917,2]
[346067636,1734690430071,-250.248625,0.00021917,2]
[346067637,1734690430093,-500.0,0.00021917,6]
[346067638,1734690430116,-500.0,0.00021917,6]
[346067639,1734690430139,-500.0,0.00021917,6]
[346067640,1734690430164,-250.248625,0.00021917,2]
[346067641,1734690430187,-250.248625,0.00021917,2]
[346067642,1734690430210,-634.0,0.00021917,6]
[346067643,1734690430232,-502.67310495,0.00021917,6]
[346067644,1734690430263,-511.98,0.00021917,6]
[346067645,1734690430286,-503.88412075,0.00021917,6]
[346067646,1734690430308,-500.0,0.00021917,6]
[346067647,1734690430331,-200.0,0.00021917,6]
[346067648,1734690430353,-527.46550663,0.00021917,6]
[346067649,1734690430374,-3921.55,0.00021917,6]
[346067650,1734690430396,-500.0,0.00021917,6]
[346067651,1734690430419,-500.0,0.00021917,6]
[346067652,1734690430440,-500.0,0.00021917,6]
[346067653,1734690430462,-500.0,0.00021917,6]
[346067654,1734690430483,-500.0,0.00021917,6]
[346067655,1734690430513,-500.0,0.00021917,6]
[346067656,1734690430536,-500.0,0.00021917,6]
[346067657,1734690430568,-553.02,0.00021917,6]
[346067658,1734690430591,-681.99,0.00021917,6]
[346067659,1734690430615,-502.62,0.00021917,6]
[346067660,1734690430640,-500.0,0.00021917,6]
[346067661,1734690430664,-1914.98,0.00021917,6]
[346067662,1734690430689,-500.0,0.00021917,6]
[346067663,1734690430713,-205.07379521,0.00021917,6]
[346067664,1734690435086,-294.92620479,0.00021917,6]
[346067665,1734690435108,-501.35603849,0.00021917,6]
[346067666,1734690435129,-500.46625652,0.00021917,6]
[346067667,1734690435151,-500.0,0.00021917,6]
[346067668,1734690435172,-500.0,0.00021917,6]
[346067670,1734690435193,-500.0,0.00021917,6]
[346067671,1734690435217,-500.0,0.00021917,6]
[346067672,1734690435240,-500.0,0.00021917,6]
[346067673,1734690435266,-1670.13,0.00021917,6]
[346067674,1734690435287,-625.85023804,0.00021917,6]
[346067675,1734690435309,-501.47,0.00021917,6]
[346067676,1734690435332,-625.03,0.00021917,6]
[346067677,1734690435354,-501.09935118,0.00021917,6]
[346067678,1734690435375,-500.0,0.00021917,6]
[346067679,1734690435398,-500.0,0.00021917,6]
[346067680,1734690435421,-151.0,0.00021917,2]
[346067681,1734690435443,-151.0,0.00021917,2]
[346067682,1734690435466,-500.0,0.00021917,6]
[346067683,1734690435488,-1710.53,0.00021917,6]
[346067684,1734690435518,-151.0,0.00021917,2]
[346067685,1734690435540,-500.0,0.00021917,6]
[346067686,1734690435565,-151.0,0.00021917,2]
[346067687,1734690435593,-500.0,0.00021917,6]
[346067688,1734690435619,-500.0,0.00021917,6]
[346067689,1734690435643,-4564.0,0.00021917,6]
[346067690,1734690435667,-915.0,0.00021917,6]
[346067691,1734690435690,-500.0,0.00021917,6]
[346067692,1734690435713,-501.19996169,0.00021917,6]
[346067693,1734690435738,-925.44,0.00021917,6]
[346067694,1734690435770,-501.44400495,0.00021917,6]
[346067695,1734690435793,-629.69,0.00021917,6]
[346067696,1734690435815,-314.13579962,0.00021917,6]
[346067697,1734690435836,-500.0,0.00021917,6]
[346067698,1734690435859,-2144.66,0.00021917,6]
[346067699,1734690435881,-883.32,0.00021917,6]
[346067700,1734690435906,-802.96,0.00021917,6]
[346067701,1734690435929,-500.0,0.00021917,6]
[346067702,1734690435952,-572.06,0.00021917,6]
[346067703,1734690435974,-500.0,0.00021917,6]
[346067704,1734690436001,-500.0,0.00021917,6]
[346067705,1734690436024,-500.0,0.00021917,6]
[346067706,1734690436051,-500.0,0.00021917,6]
[346067707,1734690436084,-500.0,0.00021917,6]
[346067708,1734690436113,-584.16,0.00021917,6]
[346067709,1734690436139,-500.0,0.00021917,6]
[346067710,1734690436166,-500.0,0.00021917,6]
[346067711,1734690436190,-500.0,0.00021917,6]
[346067712,1734690436213,-500.0,0.00021917,6]